Cogmind - Beta 14 @@@ ROGUE MODE // 2024.09.25 @ 18:07:49 Player: Zaros426 Result: Destroyed by as-85604 with Assembled Blade Performance ------------- Evolutions (0) 0 Regions Visited (2) 400 Robots Destroyed (45) 225 Value Destroyed (1180) 1180 Prototype IDs (1) 20 Alien Tech Used (0) 0 Bonus (0) 0 TOTAL SCORE: 1825 Bonus ------- None Cogmind --------- Core Integrity 0/250 Matter 300/300 Energy 49/100 System Corruption 0% Temperature Warm (162) Movement Rolling (140) Ox4 Location -10/Mines Parts ------- > --- POWER (1) -------- (None) > --- PROPULSION (2) --- Wheel > --- UTILITY (2) ------ Disposable Heat Sink High-capacity Storage Unit > --- WEAPON (2) ------- Spread Laser > --- INVENTORY (20) --- Large Storage Unit Huge Storage Unit Large Battery (200) Large Matter Pod (150) Sensor Drone Bay (20/20) Heavy EM Pulse Gun Heavy EM Pulse Gun Heavy EM Pulse Gun Heavy EM Pulse Gun Spread Laser Assault Rifle Assault Rifle Heavy Assault Rifle Rocket Launcher Datajack Mining Laser Peak State ------------ > --- POWER ------------ Light Ion Engine > --- PROPULSION ------- Wheel Wheel > --- UTILITY ---------- High-capacity Storage Unit Sensor Drone Bay > --- WEAPON ----------- Spread Laser Spread Laser > --- INVENTORY -------- Large Storage Unit Huge Storage Unit Large Battery Large Matter Pod Heavy EM Pulse Gun Heavy EM Pulse Gun Heavy EM Pulse Gun Heavy EM Pulse Gun Spread Laser Assault Rifle Assault Rifle Heavy Assault Rifle Datajack Mining Laser [Rating: 18] Favorites ----------- Power Ion Engine Engine Ion Engine Power Core Light Nuclear Core Propulsion Light Treads Treads Light Treads Wheel Wheel Utility Disposable Heat Sink Device Disposable Heat Sink Storage Medium Storage Unit Protection Light Armor Plating Weapon Spread Laser Energy Gun Spread Laser Ballistic Gun Assault Rifle Build | -11 -10 -10 ------- Run | Yrd Mat Min Slots Evolved . | . . . Power . | . . . Propulsion . | . . . Utility . | . . . Weapon . | . . . Parts Attached 41 | 7 22 12 Power 5 | 1 2 2 Engine 4 | 1 2 1 Core 1 | . . 1 Reactor . | . . . Propulsion 8 | 2 2 4 Treads 4 | 2 2 . Leg . | . . . Wheel 4 | . . 4 Hover . | . . . Flight . | . . . Utility 16 | 2 9 5 Device 6 | 1 2 3 Storage 7 | 1 4 2 Processor . | . . . Hackware . | . . . Protection 3 | . 3 . Artifact . | . . . Weapon 12 | 2 9 1 Energy Gun 10 | 1 8 1 Energy Cannon . | . . . Ballistic Gun 2 | 1 1 . Ballistic Cannon . | . . . Launcher . | . . . Special Weapon . | . . . Impact Weapon . | . . . Slashing Weapon . | . . . Piercing Weapon . | . . . Special Melee Weapon . | . . . Unidentified Prototypes 1 | . . 1 Parts Lost 10 | . 1 9 Power 3 | . . 3 Propulsion 3 | . . 3 Utility 1 | . . 1 Weapon 3 | . 1 2 Highest Loss Streak 4 | . 1 4 To Critical Strikes . | . . . Average Slot Usage (%) 97 | . 99 93 Engine 12 | . 14 8 Core 1 | . . 3 Treads 20 | . 28 3 Wheel 5 | . . 20 Device 8 | . 6 13 Storage 14 | . 14 14 Protection 4 | . 6 . Energy Gun 21 | . 18 27 Ballistic Gun 6 | . 9 . Peak Build Rating 18 | 7 12 18 Average Rating 10 | 5 9 13 On Entrance 6 | . 7 12 Naked Turns . | . . . Heaviest Build 63 | 15 32 63 Greatest Support 40 | 40 40 40 Greatest Overweight (x) 10 | 1 . 10 Average Overweight (x) . | . . 2 Largest Inventory Capacity 25 | 8 25 25 Average Capacity 12 | 7 10 17 Most Carried 17 | 4 15 17 Average Carried 10 | 2 10 14 Final Capacity 20 | 8 15 20 Final Carried 16 | 4 15 16 Class Distribution -------------------- 92% | Mutant 7% | Scavenger-Mutant Dominant Class ---------------- Mutant | -10/Materials Mutant | -10/Mines Resources | -11 -10 -10 ----------- Run | Yrd Mat Min Matter Collected 978 | 312 531 135 Remotely . | . . . Salvage Created 1519 | 131 1022 366 Parts 89 | 11 59 19 Haulers Intercepted 2 | . 2 . Recyclers Shooed 2 | 1 1 . Parts Field Recycled . | . . . Retrieved Matter . | . . . Parts Self-Destructed . | . . . Prevented . | . . . Kills | -11 -10 -10 ------- Run | Yrd Mat Min Combat Hostiles Destroyed 36 | . 17 19 Guns 35 | . 16 19 AOE 1 | . 1 . Classes Destroyed 12 | 2 4 6 Worker 1 | . . 1 Builder 1 | . . 1 Tunneler 5 | 3 1 1 Hauler 2 | . 2 . Recycler 2 | 1 1 . Operator 2 | . 2 . Watcher 3 | . 3 . Swarmer 3 | . . 3 Grunt 23 | . 17 6 Sentry 2 | . . 2 Demolisher 1 | . . 1 Assembled 7 | . . 7 Best Kill Streak 4 | 1 4 3 Combat Bots Only 3 | . 3 3 Max Kills in Single Turn 2 | 1 1 2 Gunslinging . | . . . Exploded 1 | . 1 . Melee . | . . . Uniques/NPCs Destroyed . | . . . Combat | -11 -10 -10 -------- Run | Yrd Mat Min Hostile Shots Fired 140 | . 72 68 Missed 31 | . 13 18 Damage Taken 1584 | . 708 876 Core 276 | . 81 195 Absorbed by Shields . | . . . Core Remaining (%) 100 | 100 . . Volleys Fired 141 | 14 77 50 Largest 2 | 2 2 2 Hottest 130 | 70 90 130 Shots Fired 277 | 28 151 98 Gun 277 | 28 151 98 Cannon . | . . . Launcher . | . . . Special . | . . . Kinetic 76 | 14 62 . Thermal 151 | 14 39 98 Explosive . | . . . Electromagnetic 50 | . 50 . Robot Hit Streak 13 | 5 13 12 Robot Miss Streak 12 | 3 4 12 Penetration Max . | . . . Secondary Targets 1 | . 1 . Max Gunslinging Chain 1 | . 1 . Shots Hit Robots 193 | 16 87 90 Core Hits 168 | 5 42 121 Critical Kills 1 | . 1 . Critical Parts Destroyed 1 | . 1 . Critical Strikes 5 | . 5 . Burn 3 | . 3 . Destroy 2 | . 2 . Melee Attacks . | . . . Impact . | . . . Slashing . | . . . Piercing . | . . . Sneak Attacks . | . . . Combat Hostiles . | . . . Follow-up Attacks . | . . . Damage Inflicted 2659 | 200 1286 1173 Guns 2572 | 200 1199 1173 Cannons . | . . . Explosions 87 | . 87 . Melee . | . . . Ramming . | . . . Kinetic 489 | 99 390 . Thermal 1714 | 101 440 1173 Explosive . | . . . Electromagnetic 456 | . 456 . Impact . | . . . Slashing . | . . . Piercing . | . . . Highest Corruption . | . . . Average Corruption . | . . . Corruption Purged . | . . . Corruption Blocked . | . . . Overload Shots . | . . . Overflow Damage . | . . . Projectiles . | . . . Explosions . | . . . Melee . | . . . Knockbacks . | . . . Impact . | . . . Kinetic . | . . . Secondary . | . . . Self-Inflicted Damage 32 | . 32 . Shots 1 | . 1 . Rammed . | . . . Targets Rammed . | . . . Kicked . | . . . Crushed . | . . . Highest Temperature 247 | 99 205 247 Average Temperature 75 | 42 63 95 Received Heat Transfer 561 | . 381 180 Siege Activations . | . . . Robots Corrupted . | . . . Combat Hostiles . | . . . Parts Fried 2 | . 2 . Impact Corruptions . | . . . Robots Melted . | . . . Combat Hostiles . | . . . Parts Melted 1 | . 1 . Heat Transferred 2998 | 296 1197 1505 Parts Sabotaged . | . . . Parts Stolen . | . . . Parts Stripped . | . . . Power Chain Reactions 2 | . 2 . Alert | -11 -10 -10 ------- Run | Yrd Mat Min Peak Influence 393 | 20 347 393 Initial 133 | . 13 133 Average 212 | 11 216 271 Maximum Alert Level 1 | . 1 1 Low Security (%) 32 | 100 33 9 Level 1 67 | . 66 90 Level 2 . | . . . Level 3 . | . . . Level 4 . | . . . Level 5 . | . . . High Security . | . . . Max Security . | . . . Squads Dispatched 7 | . 7 . Investigation 5 | . 5 . Extermination . | . . . Reinforcement 2 | . 2 . Assault . | . . . Garrison . | . . . Intercept . | . . . Searches Triggered . | . . . Construction Impeded . | . . . Haulers Reinforced . | . . . Active Scanning Responses . | . . . Cargo Convoy Interrupts . | . . . Stealth | -11 -10 -10 --------- Run | Yrd Mat Min Distress Signals . | . . . Communications Jammed . | . . . Distress Signals . | . . . Times Spotted 63 | . 35 28 Peak Tracking Total 6 | . 6 6 Tactical Retreats 6 | . 1 5 Traps | -11 -10 -10 ------- Run | Yrd Mat Min Traps Triggered 1 | . 1 . Indirectly . | . . . Trap Hack Attempts . | . . . Triggered . | . . . Disarmed . | . . . Reprogrammed . | . . . Reused . | . . . Traps Extracted . | . . . Installed . | . . . Triggered . | . . . Machines | -11 -10 -10 ---------- Run | Yrd Mat Min Machines Disabled 1 | . 1 . Max in Single Turn 1 | . 1 . Machines Repaired . | . . . Machines Dismantled . | . . . Machines Sabotaged . | . . . Overloaded Fab Kills . | . . . Hacking | -11 -10 -10 --------- Run | Yrd Mat Min Machines Accessed 9 | . 8 1 Terminals 6 | . 6 . Fabricators . | . . . Repair Stations . | . . . Recycling Units 2 | . 2 . Scanalyzers . | . . . Garrison Access . | . . . Total Hacks 33 | . 32 1 Successful 20 | . 19 1 Failed 13 | . 13 . Catastrophic 1 | . 1 . Database Lockouts . | . . . Manual 31 | . 31 . Terminals 30 | . 30 . Fabricators . | . . . Repair Stations . | . . . Recycling Units 2 | . 2 . Scanalyzers . | . . . Garrison Access . | . . . Terminal Hacks 8 | . 7 1 Robot Schematic 2 | . 2 . Robot Analysis 3 | . 3 . Open Door 1 | . . 1 Locate Traps 2 | . 2 . Fabricator Hacks . | . . . Repair Station Hacks . | . . . Recycling Unit Hacks . | . . . Scanalyzer . | . . . Garrison Access Hacks . | . . . Unauthorized Hacks 12 | . 12 . Terminals 10 | . 10 . Assimilate 1 | . 1 . Botnet 2 | . 2 . Operators 1 | . 1 . Skim 6 | . 6 . Fabricators . | . . . Repair Stations . | . . . Recycling Units 2 | . 2 . Tunnel 2 | . 2 . Scanalyzers . | . . . Garrison Access . | . . . Data Cores Recovered . | . . . Used . | . . . Hacking Detections 6 | . 6 . Full Trace Events 2 | . 2 . Feedback Events . | . . . Feedback Blocked . | . . . Robot Schematics Acquired 2 | . 2 . Robots Built . | . . . Authchips . | . . . Time . | . . . Total Robot Build Rating . | . . . Part Schematics Acquired . | . . . Parts Built . | . . . Authchips . | . . . Time . | . . . Total Part Build Rating . | . . . Parts Repaired . | . . . Time . | . . . Parts Recycled . | . . . Recycled Matter . | . . . Retrieved Matter . | . . . Retrieved Components . | . . . Parts Scanalyzed . | . . . Part Schematics Acquired . | . . . Parts Damaged . | . . . Bothacking | -11 -10 -10 ------------ Run | Yrd Mat Min Used RIF Installer . | . . . Robots Hacked . | . . . Non-combat . | . . . Combat . | . . . Robot Hacks Applied . | . . . Relay Couplers Released . | . . . Fabnet Peak Effective % . | . . . Robots Rewired . | . . . Allies Hacked . | . . . Hacks Repelled . | . . . Allies | -11 -10 -10 -------- Run | Yrd Mat Min Total Allies . | . . . Largest Group . | . . . Highest-Rated Group . | . . . Highest-Rated Ally . | . . . Total Orders 2 | . . 2 RETURN 2 | . . 2 Ally Attacks . | . . . Total Damage . | . . . Kills . | . . . Allies Corrupted . | . . . Allies Melted . | . . . Intel | -11 -10 -10 ------- Run | Yrd Mat Min Robot Analysis Total 3 | . 3 . Derelict Logs Recovered 1 | . . 1 Drone Launches 2 | . . 2 Drone Recoveries 2 | . . 2 Exploration | -11 -10 -10 ------------- Run | Yrd Mat Min Turns Passed 3084 | 280 1984 820 Spaces Moved 1602 | 141 988 473 Core 16 | 4 . 12 Treads 1157 | 137 988 32 Legs . | . . . Wheels 429 | . . 429 Hover . | . . . Flight . | . . . Fastest Speed 50 | 50 160 95 Average Speed 149 | 157 160 124 Slowest Speed 550 | 160 160 550 Overloaded Moves . | . . . Propulsion Burnouts . | . . . Robots Hopped . | . . . Cave-ins Triggered . | . . . Exploration Rate (%) 56 | 8 99 62 Regions Visited 2 Branch Regions 1 Pre-discovered Areas 2 | . 2 . Known Exits Taken . | . . . Unknown Exits Taken 2 | 1 1 . Scrap Searched . | . . . Spaces Dug . | . . . Terrain Destroyed 6 | . 6 . Melee . | . . . Projectile . | . . . AOE 6 | . 6 . Terrain Rammed . | . . . Walls Destroyed . | . . . Machines Disabled . | . . . Actions | -11 -10 -10 --------- Run | Yrd Mat Min Total 2015 | 168 1244 603 Wait 173 | 1 111 61 Move 1600 | 140 987 473 Hop . | . . . Pick Up 36 | 6 26 4 Fast Attach 12 | 5 3 4 Attach 8 | 2 3 3 Detach . | . . . Swap 21 | . 16 5 Drop 24 | . 21 3 Fire 141 | 14 77 50 Melee . | . . . Ram . | . . . Kick . | . . . Crush . | . . . Escape Stasis . | . . . Rewire . | . . . Trap . | . . . Miscellaneous . | . . . Route ------- -11/Scrapyard -10/Materials (discovered 6 exits: [*Mat x3] / *Min x2 / [*Sub]) -10/Mines (discovered 2 exits: [*Mat x2]) History --------- Turn | Location | Event 9 | -11/Scrapyard | Discovered new exit (range 14) 281 | -11/Scrapyard | Entered Materials 301 | -10/Materials | Build established: Mutant 350 | -10/Materials | Discovered new exit (range 14) 502 | -10/Materials | Discovered new exit (range 10) 553 | -10/Materials | Discovered new exit (range 16) 826 | -10/Materials | Discovered new exit (range 5) 1466 | -10/Materials | Discovered new exit (range 11) 1799 | -10/Materials | Discovered new exit (range 6) 2265 | -10/Materials | Entered Mines 2266 | -10/Mines | Assembled infested the area 2297 | -10/Mines | Core integrity fell below 50% 2335 | -10/Mines | Discovered new exit (range 7) 2350 | -10/Mines | Met a Derelict bent on vengeance 2424 | -10/Mines | Lost 4 parts (1p2n1u) 2570 | -10/Mines | Learned Materials stockpile data 2617 | -10/Mines | Core integrity fell below 20% 2712 | -10/Mines | Discovered new exit (range 4) 2800 | -10/Mines | Found the Drone Emporium 2807 | -10/Mines | Found Prototype Device 2807 | -10/Mines | Identified Sensor Drone Bay 2959 | -10/Mines | Received a Rocket Launcher from a helpful Derelict 3085 | -10/Mines | Destroyed by as-85604 with Assembled Blade Last Messages --------------- 02958_ 8J-2L5(g): "Need a small hole in the wall? Leave that to the mining laser wimps, I say!" 02959_ 8J-2L5(g): "Would you like a rocket launcher? I know I would if I were you, so I'm going to lend you mine." 02959_ 8J-2L5(g) slips back into the shadows. 02966_ Acquired Rocket Launcher. 02980_ Sensor Drone released from Sensor Drone Bay. 02982_ Sensor Drone retrieved by Sensor Drone Bay. 03004_ Lgt. Ion Engine destroyed. 03013_ as-32630 destroyed. 03028_ Extracted 5 matter. 03029_ R-06 Scavenger collects Structural Scanner. 03030_ as-96278 sneak attacks. 03030_ R-06 Scavenger destroyed. 03035_ as-96278 sneak attacks. 03035_ T-07 Excavator destroyed. 03042_ as-35926 destroyed. 03050_ T-07 Excavator destroyed. 03060_ as-96278 destroyed. 03079_ as-57101 destroyed. 03082_ Spread Laser destroyed. 03082_ Wheel destroyed. Map ----- +----------------------------------------------------+ | ????????????????????????????????????????????????# | | ??????????????????????????????????????????????### | | ???????????????????????????????#########??????# | | ???????????????????????????????# #??????# "" | | ???????????????????????????????# """ #??????# "" | | ???????????????????????????????# """ #??????# "" | | ???????????????????????????????# """ #??????# | | ??????????????????????????????## #??????#### | | ?????????????????????????????## #???????##" | | ?????????????????????????????## ##??????#"" | | ???????????????????????? ???# #??????# | | ???????????????????????? ???### #?????### | | ???????????????????????? ???# #????## ## | | ???????????????????????# ???# ##????# % | | ???????????????????????# ???## #?????# !% | | ???????????????????????# ###?## #?????## | | ???????????????????????# ##?# #??????## | | ???????????????????????# ??# " #???????# | | ??????????????????????? ??# "%" #???????# | | ??????????????????????? #??####"####???????# | | ??????????????????????## ??????# #??????????# | | ??????????????????##### | ??????# ######?????# | | ??????????????????? =% % ???????# %%#?????# | | ?????????????????????% % ???????######%#??#### | | ??????????????????????? a!#??###########|#### =# % | | ????????????????????????#@#??# |!## ## !%=%! | | ????????????????????????#%#??# ="""==% % !*! | | ????????????????????????#*#??# *!"""!%#### | | ????????????????????????#%#??# =|"""%*#??# #### | | ????????????????????????#!#??#!==*==! #??## ##??? | | ????????????????????????#=####%=!!%%| #???####???? | | ????????????????????????#%*=##!!%%